[Event "Titled Tuesday Blitz February 28 Early 2023"]
[White "Sovetbekova, Nurai"]
[Black "Vlassov, Nikolai"]
[WhiteFideId "13801910"]
[BlackFideId "4103360"]
[WhiteElo "1857"]
[BlackElo "2324"]
[Result "0-1"]
[Round "01"]
[TimeControl "180+2"]
[Date "2023.02.28"]
[WhiteClock "0:00:02"]
[BlackClock "0:00:03"]

1. d4 {[%clk 0:03:00]}  Nf6 {[%clk 0:02:56]} 2. c4 {[%clk 0:03:00]}  Nc6 {[%clk 0:02:56]} 3. Nc3 {[%clk 0:02:59]}  e5 {[%clk 0:02:56]} 4. d5 {[%clk 0:02:57]}  Ne7 {[%clk 0:02:56]} 5. e4 {[%clk 0:02:55]}  Ng6 {[%clk 0:02:56]} 6. Nf3 {[%clk 0:02:51]}  Bc5 {[%clk 0:02:55]} 7. Be2 {[%clk 0:02:46]}  O-O {[%clk 0:02:51]} 8. O-O {[%clk 0:02:44]}  d6 {[%clk 0:02:51]} 9. Ne1 {[%clk 0:02:42]}  a5 {[%clk 0:02:48]} 10. Nd3 {[%clk 0:02:42]}  Ba7 {[%clk 0:02:44]} 11. Kh1 {[%clk 0:02:24]}  c6 {[%clk 0:02:25]} 12. a3 {[%clk 0:02:12]}  cxd5 {[%clk 0:02:25]} 13. cxd5 {[%clk 0:02:07]}  Bd7 {[%clk 0:02:22]} 14. b4 {[%clk 0:02:01]}  axb4 {[%clk 0:02:13]} 15. axb4 {[%clk 0:02:02]}  Bb6 {[%clk 0:02:13]} 16. Rxa8 {[%clk 0:01:53]}  Qxa8 {[%clk 0:02:13]} 17. Bb2 {[%clk 0:01:53]}  Rc8 {[%clk 0:01:59]} 18. Qb3 {[%clk 0:01:48]}  Bd4 {[%clk 0:01:43]} 19. f3 {[%clk 0:01:25]}  Qa7 {[%clk 0:01:29]} 20. Ra1 {[%clk 0:01:18]}  Qb6 {[%clk 0:01:29]} 21. Na4 {[%clk 0:01:10]}  Bxa4 {[%clk 0:01:12]} 22. Rxa4 {[%clk 0:01:06]}  Bxb2 {[%clk 0:00:56]} 23. Qxb2 {[%clk 0:00:57]}  Qe3 {[%clk 0:00:56]} 24. Ra1 {[%clk 0:00:28]}  Nh5 {[%clk 0:00:42]} 25. Bf1 {[%clk 0:00:11]}  Nhf4 {[%clk 0:00:24]} 26. Rc1 {[%clk 0:00:07]}  Rxc1 {[%clk 0:00:15]} 27. Qxc1 {[%clk 0:00:06]}  Qxc1 {[%clk 0:00:14]} 28. Nxc1 {[%clk 0:00:06]}  f5 {[%clk 0:00:14]} 29. exf5 {[%clk 0:00:05]}  Ne7 {[%clk 0:00:14]} 30. Nd3 {[%clk 0:00:03]}  Nfxd5 {[%clk 0:00:13]} 31. b5 {[%clk 0:00:03]}  Nxf5 {[%clk 0:00:14]} 32. Kg1 {[%clk 0:00:03]}  Kf7 {[%clk 0:00:13]} 33. Kf2 {[%clk 0:00:04]}  Ke6 {[%clk 0:00:14]} 34. Ke2 {[%clk 0:00:04]}  Nd4+ {[%clk 0:00:14]} 35. Kd2 {[%clk 0:00:04]}  Nxb5 {[%clk 0:00:14]} 36. Nc5+ {[%clk 0:00:04]}  dxc5 {[%clk 0:00:14]} 37. Bxb5 {[%clk 0:00:05]}  Nf4 {[%clk 0:00:14]} 38. g3 {[%clk 0:00:05]}  Nh3 {[%clk 0:00:12]} 39. Ke3 {[%clk 0:00:04]}  Ng5 {[%clk 0:00:11]} 40. Bc4+ {[%clk 0:00:04]}  Kd6 {[%clk 0:00:11]} 41. Bg8 {[%clk 0:00:04]}  h6 {[%clk 0:00:11]} 42. f4 {[%clk 0:00:03]}  exf4+ {[%clk 0:00:11]} 43. gxf4 {[%clk 0:00:04]}  Ne6 {[%clk 0:00:11]} 44. Ke4 {[%clk 0:00:04]}  b5 {[%clk 0:00:07]} 45. f5 {[%clk 0:00:03]}  Ng5+ {[%clk 0:00:07]} 46. Kf4 {[%clk 0:00:04]}  c4 {[%clk 0:00:07]} 47. h4 {[%clk 0:00:04]}  Nh3+ {[%clk 0:00:04]} 48. Kg3 {[%clk 0:00:04]}  Ng1 {[%clk 0:00:05]} 49. Kf2 {[%clk 0:00:04]}  Ke5 {[%clk 0:00:01]} 50. Be6 {[%clk 0:00:03]}  Nh3+ {[%clk 0:00:01]} 51. Kg3 {[%clk 0:00:04]}  Nf4 {[%clk 0:00:01]} 52. Bd7 {[%clk 0:00:04]}  b4 {[%clk 0:00:01]} 53. Bb5 {[%clk 0:00:04]}  b3 {[%clk 0:00:02]} 54. Bxc4 {[%clk 0:00:04]}  b2 {[%clk 0:00:02]} 55. Ba2 {[%clk 0:00:04]}  Ne2+ {[%clk 0:00:03]} 56. Kf2 {[%clk 0:00:04]}  Nc3 {[%clk 0:00:03]} 57. f6 {[%clk 0:00:02]}  gxf6 {[%clk 0:00:03]} 0-1


[Site "https://www.chess.com"]

[Event "Titled Tuesday Blitz February 28 Early 2023"]
[White "Wilson, Elvin"]
[Black "Seemann, Jakub"]
[WhiteFideId "2014874"]
[BlackFideId "21874697"]
[WhiteElo "2311"]
[BlackElo "2364"]
[Result "0-1"]
[Round "01"]
[TimeControl "180+2"]
[Date "2023.02.28"]
[WhiteClock "0:00:03"]
[BlackClock "0:00:16"]

1. c4 {[%clk 0:03:00]}  c6 {[%clk 0:02:58]} 2. g3 {[%clk 0:02:58]}  d5 {[%clk 0:02:57]} 3. Nf3 {[%clk 0:02:56]}  Nf6 {[%clk 0:02:54]} 4. Bg2 {[%clk 0:02:56]}  dxc4 {[%clk 0:02:53]} 5. O-O {[%clk 0:02:55]}  h6 {[%clk 0:02:48]} 6. Na3 {[%clk 0:02:51]}  Be6 {[%clk 0:02:48]} 7. Qc2 {[%clk 0:02:44]}  b5 {[%clk 0:02:32]} 8. b3 {[%clk 0:02:19]}  cxb3 {[%clk 0:02:24]} 9. axb3 {[%clk 0:02:19]}  Bd5 {[%clk 0:02:23]} 10. d3 {[%clk 0:02:19]}  e5 {[%clk 0:02:20]} 11. Nxe5 {[%clk 0:02:07]}  Bxg2 {[%clk 0:02:19]} 12. Kxg2 {[%clk 0:02:06]}  Qd5+ {[%clk 0:02:19]} 13. Nf3 {[%clk 0:02:06]}  Be7 {[%clk 0:02:14]} 14. e4 {[%clk 0:01:57]}  Qd7 {[%clk 0:02:10]} 15. Bb2 {[%clk 0:01:52]}  O-O {[%clk 0:02:07]} 16. Rfc1 {[%clk 0:01:51]}  c5 {[%clk 0:02:01]} 17. Ne5 {[%clk 0:01:48]}  Qe8 {[%clk 0:01:57]} 18. Qe2 {[%clk 0:01:35]}  Nc6 {[%clk 0:01:48]} 19. Nf3 {[%clk 0:01:03]}  a6 {[%clk 0:01:43]} 20. Nc2 {[%clk 0:01:03]}  Qd7 {[%clk 0:01:37]} 21. Ne3 {[%clk 0:01:03]}  Rfd8 {[%clk 0:01:29]} 22. Rd1 {[%clk 0:00:57]}  Ng4 {[%clk 0:01:22]} 23. Nf5 {[%clk 0:00:53]}  Bf6 {[%clk 0:01:23]} 24. h3 {[%clk 0:00:44]}  Bxb2 {[%clk 0:01:15]} 25. Qxb2 {[%clk 0:00:44]}  Nf6 {[%clk 0:01:15]} 26. Nxh6+ {[%clk 0:00:44]}  Kf8 {[%clk 0:01:12]} 27. Nf5 {[%clk 0:00:38]}  Qe6 {[%clk 0:01:11]} 28. Qc2 {[%clk 0:00:33]}  Nd7 {[%clk 0:01:01]} 29. Qc1 {[%clk 0:00:29]}  Nce5 {[%clk 0:00:48]} 30. Qg5 {[%clk 0:00:24]}  Qf6 {[%clk 0:00:32]} 31. Qh5 {[%clk 0:00:24]}  g6 {[%clk 0:00:28]} 32. Qh6+ {[%clk 0:00:23]}  Kg8 {[%clk 0:00:29]} 33. N5h4 {[%clk 0:00:13]}  Nxf3 {[%clk 0:00:27]} 34. Nxf3 {[%clk 0:00:13]}  Ne5 {[%clk 0:00:25]} 35. Nxe5 {[%clk 0:00:13]}  Qxe5 {[%clk 0:00:26]} 36. h4 {[%clk 0:00:13]}  Rd6 {[%clk 0:00:19]} 37. Qe3 {[%clk 0:00:12]}  Rad8 {[%clk 0:00:19]} 38. Rac1 {[%clk 0:00:13]}  Rd4 {[%clk 0:00:18]} 39. Rc3 {[%clk 0:00:12]}  c4 {[%clk 0:00:18]} 40. bxc4 {[%clk 0:00:11]}  bxc4 {[%clk 0:00:19]} 41. Rd2 {[%clk 0:00:10]}  Qd6 {[%clk 0:00:17]} 42. e5 {[%clk 0:00:10]}  Qd5+ {[%clk 0:00:17]} 43. Qf3 {[%clk 0:00:10]}  Qxf3+ {[%clk 0:00:17]} 44. Kxf3 {[%clk 0:00:10]}  Rxd3+ {[%clk 0:00:16]} 45. Rcxd3 {[%clk 0:00:10]}  cxd3 {[%clk 0:00:14]} 46. Ke3 {[%clk 0:00:10]}  Rd5 {[%clk 0:00:14]} 47. f4 {[%clk 0:00:10]}  Kg7 {[%clk 0:00:12]} 48. Rxd3 {[%clk 0:00:10]}  Ra5 {[%clk 0:00:13]} 49. Rd7 {[%clk 0:00:08]}  Kf8 {[%clk 0:00:13]} 50. Ra7 {[%clk 0:00:08]}  Ra3+ {[%clk 0:00:14]} 51. Kf2 {[%clk 0:00:07]}  a5 {[%clk 0:00:15]} 52. Kg2 {[%clk 0:00:05]}  a4 {[%clk 0:00:14]} 53. Kh3 {[%clk 0:00:05]}  Ra1 {[%clk 0:00:15]} 54. Kg4 {[%clk 0:00:05]}  Kg8 {[%clk 0:00:15]} 55. Kg5 {[%clk 0:00:05]}  a3 {[%clk 0:00:16]} 56. Kf6 {[%clk 0:00:03]}  a2 {[%clk 0:00:16]} 0-1


[Site "https://www.chess.com"]

[Event "Titled Tuesday Blitz February 28 Early 2023"]
[White "Vifleemskaia, Svetlana"]
[Black "Han, Yichen"]
[WhiteFideId "4129490"]
[BlackFideId "1054430"]
[WhiteElo "1930"]
[BlackElo "2342"]
[Result "0-1"]
[Round "01"]
[TimeControl "180+2"]
[Date "2023.02.28"]
[WhiteClock "0:00:28"]
[BlackClock "0:02:04"]

1. d4 {[%clk 0:02:53]}  d5 {[%clk 0:02:59]} 2. c4 {[%clk 0:02:03]}  e6 {[%clk 0:02:56]} 3. Nc3 {[%clk 0:02:02]}  c5 {[%clk 0:02:56]} 4. cxd5 {[%clk 0:02:00]}  cxd4 {[%clk 0:02:56]} 5. Qxd4 {[%clk 0:01:59]}  Nc6 {[%clk 0:02:56]} 6. Qa4 {[%clk 0:02:00]}  exd5 {[%clk 0:02:51]} 7. Nf3 {[%clk 0:01:56]}  d4 {[%clk 0:02:47]} 8. Nb5 {[%clk 0:01:55]}  Bb4+ {[%clk 0:02:38]} 9. Bd2 {[%clk 0:01:55]}  Bxd2+ {[%clk 0:02:37]} 10. Kxd2 {[%clk 0:01:50]}  a6 {[%clk 0:02:19]} 11. Nbxd4 {[%clk 0:01:48]}  b5 {[%clk 0:02:17]} 12. Qc2 {[%clk 0:00:41]}  Nxd4 {[%clk 0:02:17]} 13. Qe4+ {[%clk 0:00:37]}  Ne6+ {[%clk 0:02:15]} 14. Kc2 {[%clk 0:00:33]}  Qc7+ {[%clk 0:02:10]} 15. Kd1 {[%clk 0:00:28]}  Bb7 {[%clk 0:02:04]} 0-1


[Site "https://www.chess.com"]

[Event "Titled Tuesday Blitz February 28 Early 2023"]
[White "Alvarez Calzadilla, Jose Avelino"]
[Black "MunichMouse"]
[WhiteFideId "3526151"]
[WhiteElo "2310"]
[BlackElo "2308"]
[Result "1-0"]
[Round "01"]
[TimeControl "180+2"]
[Date "2023.02.28"]
[WhiteClock "0:00:29"]
[BlackClock "0:00:36"]

1. d4 {[%clk 0:02:59]}  Nf6 {[%clk 0:02:59]} 2. Nf3 {[%clk 0:03:00]}  g6 {[%clk 0:03:00]} 3. Bg5 {[%clk 0:02:59]}  Bg7 {[%clk 0:02:59]} 4. Nbd2 {[%clk 0:03:00]}  d5 {[%clk 0:02:59]} 5. e3 {[%clk 0:02:54]}  h6 {[%clk 0:03:00]} 6. Bh4 {[%clk 0:02:53]}  O-O {[%clk 0:03:00]} 7. c4 {[%clk 0:02:53]}  c6 {[%clk 0:02:57]} 8. Be2 {[%clk 0:02:53]}  Nbd7 {[%clk 0:02:58]} 9. O-O {[%clk 0:02:53]}  Qe8 {[%clk 0:02:56]} 10. Rc1 {[%clk 0:02:49]}  e5 {[%clk 0:02:56]} 11. dxe5 {[%clk 0:02:49]}  Nxe5 {[%clk 0:02:56]} 12. Bxf6 {[%clk 0:02:40]}  Bxf6 {[%clk 0:02:52]} 13. cxd5 {[%clk 0:02:40]}  cxd5 {[%clk 0:02:48]} 14. b3 {[%clk 0:02:32]}  Bf5 {[%clk 0:02:43]} 15. Nxe5 {[%clk 0:02:32]}  Qxe5 {[%clk 0:02:36]} 16. Nf3 {[%clk 0:02:32]}  Qd6 {[%clk 0:02:34]} 17. Nd4 {[%clk 0:02:29]}  Bd7 {[%clk 0:02:29]} 18. Bg4 {[%clk 0:02:22]}  Rac8 {[%clk 0:02:21]} 19. Bxd7 {[%clk 0:02:21]}  Qxd7 {[%clk 0:02:20]} 20. Qd3 {[%clk 0:02:17]}  Rxc1 {[%clk 0:02:10]} 21. Rxc1 {[%clk 0:02:18]}  Rc8 {[%clk 0:02:10]} 22. Rxc8+ {[%clk 0:02:18]}  Qxc8 {[%clk 0:02:11]} 23. g3 {[%clk 0:02:13]}  Qc1+ {[%clk 0:02:10]} 24. Kg2 {[%clk 0:02:12]}  Qb2 {[%clk 0:02:11]} 25. Nb5 {[%clk 0:01:49]}  a6 {[%clk 0:02:05]} 26. Nd6 {[%clk 0:01:47]}  d4 {[%clk 0:01:51]} 27. Qc4 {[%clk 0:01:42]}  Kh7 {[%clk 0:01:45]} 28. Qxf7+ {[%clk 0:01:41]}  Bg7 {[%clk 0:01:45]} 29. exd4 {[%clk 0:01:14]}  Qxd4 {[%clk 0:01:43]} 30. Ne8 {[%clk 0:00:43]}  b5 {[%clk 0:01:28]} 31. Qxg7+ {[%clk 0:00:39]}  Qxg7 {[%clk 0:01:28]} 32. Nxg7 {[%clk 0:00:40]}  Kxg7 {[%clk 0:01:29]} 33. f4 {[%clk 0:00:41]}  Kf6 {[%clk 0:01:29]} 34. Kf3 {[%clk 0:00:41]}  Ke6 {[%clk 0:01:30]} 35. g4 {[%clk 0:00:39]}  Kd5 {[%clk 0:01:28]} 36. Ke3 {[%clk 0:00:39]}  b4 {[%clk 0:01:25]} 37. Kd3 {[%clk 0:00:37]}  g5 {[%clk 0:00:51]} 38. f5 {[%clk 0:00:35]}  a5 {[%clk 0:00:51]} 39. h3 {[%clk 0:00:33]}  Ke5 {[%clk 0:00:51]} 40. Kc4 {[%clk 0:00:32]}  h5 {[%clk 0:00:34]} 41. Kb5 {[%clk 0:00:31]}  hxg4 {[%clk 0:00:35]} 42. hxg4 {[%clk 0:00:30]}  Kf4 {[%clk 0:00:35]} 43. f6 {[%clk 0:00:31]}  Kxg4 {[%clk 0:00:36]} 44. f7 {[%clk 0:00:31]}  Kh3 {[%clk 0:00:36]} 45. f8=Q {[%clk 0:00:30]}  g4 {[%clk 0:00:37]} 46. Kxa5 {[%clk 0:00:29]}  g3 {[%clk 0:00:37]} 47. Kxb4 {[%clk 0:00:29]}  g2 {[%clk 0:00:37]} 48. Qf3+ {[%clk 0:00:29]}  Kh2 {[%clk 0:00:36]} 49. Qxg2+ {[%clk 0:00:29]} 1-0


[Site "https://www.chess.com"]

[Event "Titled Tuesday Blitz February 28 Early 2023"]
[White "Fiorito, Joaquin"]
[Black "Ruiz Aguilar, Pablo Alexander"]
[WhiteFideId "180173"]
[BlackFideId "4401352"]
[WhiteElo "2157"]
[BlackElo "2138"]
[Result "1-0"]
[Round "01"]
[TimeControl "180+2"]
[Date "2023.02.28"]
[WhiteClock "0:00:16"]
[BlackClock "0:00:01"]

1. d4 {[%clk 0:03:00]}  d5 {[%clk 0:01:11]} 2. Nc3 {[%clk 0:02:58]}  c6 {[%clk 0:01:11]} 3. Bf4 {[%clk 0:02:56]}  Nf6 {[%clk 0:01:12]} 4. e3 {[%clk 0:02:56]}  Bf5 {[%clk 0:01:12]} 5. f3 {[%clk 0:02:57]}  e6 {[%clk 0:01:12]} 6. g4 {[%clk 0:02:58]}  Bg6 {[%clk 0:01:13]} 7. h4 {[%clk 0:02:59]}  h5 {[%clk 0:01:11]} 8. g5 {[%clk 0:02:59]}  Nfd7 {[%clk 0:01:12]} 9. Qd2 {[%clk 0:03:00]}  a6 {[%clk 0:01:08]} 10. Nh3 {[%clk 0:02:59]}  c5 {[%clk 0:01:08]} 11. Bg3 {[%clk 0:02:58]}  Nc6 {[%clk 0:01:05]} 12. Nf4 {[%clk 0:02:58]}  cxd4 {[%clk 0:01:05]} 13. exd4 {[%clk 0:02:59]}  Bf5 {[%clk 0:01:03]} 14. g6 {[%clk 0:02:53]}  Bxg6 {[%clk 0:01:00]} 15. Nxg6 {[%clk 0:02:53]}  fxg6 {[%clk 0:01:01]} 16. O-O-O {[%clk 0:02:52]}  Kf7 {[%clk 0:00:58]} 17. Bh3 {[%clk 0:02:52]}  Qf6 {[%clk 0:00:50]} 18. Rde1 {[%clk 0:02:51]}  Nxd4 {[%clk 0:00:38]} 19. Rxe6 {[%clk 0:01:48]}  Nxe6 {[%clk 0:00:36]} 20. Qxd5 {[%clk 0:01:48]}  Nb6 {[%clk 0:00:28]} 21. Qxb7+ {[%clk 0:01:48]}  Be7 {[%clk 0:00:25]} 22. Ne4 {[%clk 0:01:48]}  Qd4 {[%clk 0:00:17]} 23. Bf2 {[%clk 0:01:47]}  Qd7 {[%clk 0:00:14]} 24. Bxe6+ {[%clk 0:01:45]}  Kxe6 {[%clk 0:00:11]} 25. Qxb6+ {[%clk 0:01:36]}  Kf7 {[%clk 0:00:11]} 26. Rd1 {[%clk 0:01:34]}  Qe6 {[%clk 0:00:08]} 27. Qe3 {[%clk 0:01:34]}  Kg8 {[%clk 0:00:07]} 28. Re1 {[%clk 0:01:31]}  Re8 {[%clk 0:00:05]} 29. Qd3 {[%clk 0:01:31]}  Qf7 {[%clk 0:00:04]} 30. Bg3 {[%clk 0:01:23]}  Kh7 {[%clk 0:00:04]} 31. Qd7 {[%clk 0:01:18]}  Rhf8 {[%clk 0:00:04]} 32. Qd3 {[%clk 0:00:51]}  Kg8 {[%clk 0:00:03]} 33. Rf1 {[%clk 0:00:47]}  Rd8 {[%clk 0:00:03]} 34. Qxa6 {[%clk 0:00:40]}  Ra8 {[%clk 0:00:03]} 35. Qb7 {[%clk 0:00:37]}  Rxa2 {[%clk 0:00:03]} 36. Rf2 {[%clk 0:00:20]}  Ra1+ {[%clk 0:00:03]} 37. Kd2 {[%clk 0:00:21]}  Rd8+ {[%clk 0:00:03]} 38. Ke2 {[%clk 0:00:21]}  Rad1 {[%clk 0:00:03]} 39. Qb5 {[%clk 0:00:19]}  Qe6 {[%clk 0:00:02]} 40. Bf4 {[%clk 0:00:16]}  Qf5 {[%clk 0:00:01]} 41. Qc4+ {[%clk 0:00:16]}  Kh7 {[%clk 0:00:01]} 42. Be3 {[%clk 0:00:16]}  Bf8 {[%clk 0:00:01]} 43. Rg2 {[%clk 0:00:16]} 1-0


[Site "https://www.chess.com"]

[Event "Titled Tuesday Blitz February 28 Early 2023"]
[White "Liu, Casper"]
[Black "Ambartsumova, Karina"]
[WhiteFideId "1454153"]
[BlackFideId "4166299"]
[WhiteElo "2221"]
[BlackElo "2319"]
[Result "0-1"]
[Round "01"]
[TimeControl "180+2"]
[Date "2023.02.28"]
[WhiteClock "0:00:01"]
[BlackClock "0:00:04"]

1. d4 {[%clk 0:02:52]}  Nf6 {[%clk 0:02:59]} 2. c4 {[%clk 0:02:50]}  g6 {[%clk 0:02:59]} 3. Nc3 {[%clk 0:02:49]}  Bg7 {[%clk 0:03:00]} 4. e4 {[%clk 0:02:49]}  d6 {[%clk 0:03:00]} 5. h4 {[%clk 0:02:49]}  O-O {[%clk 0:02:54]} 6. h5 {[%clk 0:02:49]}  c5 {[%clk 0:02:42]} 7. d5 {[%clk 0:02:37]}  e6 {[%clk 0:02:32]} 8. hxg6 {[%clk 0:02:14]}  fxg6 {[%clk 0:02:26]} 9. Bh6 {[%clk 0:02:15]}  exd5 {[%clk 0:02:17]} 10. Bxg7 {[%clk 0:02:06]}  Kxg7 {[%clk 0:02:16]} 11. Qd2 {[%clk 0:01:56]}  dxe4 {[%clk 0:01:29]} 12. Qh6+ {[%clk 0:01:55]}  Kg8 {[%clk 0:01:28]} 13. O-O-O {[%clk 0:01:44]}  Nc6 {[%clk 0:01:26]} 14. Nxe4 {[%clk 0:01:43]}  Qe7 {[%clk 0:01:15]} 15. Ng5 {[%clk 0:00:38]}  Bf5 {[%clk 0:01:04]} 16. N1f3 {[%clk 0:00:29]}  Nb4 {[%clk 0:00:58]} 17. Re1 {[%clk 0:00:24]}  Nxa2+ {[%clk 0:00:49]} 18. Kd2 {[%clk 0:00:24]}  Qc7 {[%clk 0:00:45]} 19. Bd3 {[%clk 0:00:03]}  Qa5+ {[%clk 0:00:40]} 20. Ke3 {[%clk 0:00:03]}  Rae8+ {[%clk 0:00:34]} 21. Kf4 {[%clk 0:00:04]}  Bxd3 {[%clk 0:00:26]} 22. Rxe8 {[%clk 0:00:03]}  Nxe8+ {[%clk 0:00:16]} 23. Kg3 {[%clk 0:00:03]}  Qc7 {[%clk 0:00:15]} 24. Nxh7 {[%clk 0:00:03]}  d5+ {[%clk 0:00:15]} 25. Kg4 {[%clk 0:00:01]}  Bf5+ {[%clk 0:00:15]} 26. Kg5 {[%clk 0:00:01]}  Qe7+ {[%clk 0:00:14]} 27. Kf4 {[%clk 0:00:02]}  Qc7+ {[%clk 0:00:08]} 28. Ke3 {[%clk 0:00:01]}  d4+ {[%clk 0:00:07]} 29. Kd2 {[%clk 0:00:02]}  Qg7 {[%clk 0:00:07]} 30. Nf6+ {[%clk 0:00:02]}  Nxf6 {[%clk 0:00:07]} 31. Qf4 {[%clk 0:00:02]}  Ne4+ {[%clk 0:00:07]} 32. Kd1 {[%clk 0:00:02]}  Nb4 {[%clk 0:00:06]} 33. Ng5 {[%clk 0:00:01]}  Bd7 {[%clk 0:00:04]} 34. Qg3 {[%clk 0:00:01]}  Nxg3 {[%clk 0:00:04]} 0-1


[Site "https://www.chess.com"]

[Event "Titled Tuesday Blitz February 28 Early 2023"]
[White "Smith, Garrett L"]
[Black "Shapiro, Viktor"]
[WhiteFideId "2024829"]
[BlackFideId "4175700"]
[WhiteElo "2298"]
[BlackElo "2132"]
[Result "1-0"]
[Round "01"]
[TimeControl "180+2"]
[Date "2023.02.28"]
[WhiteClock "0:00:18"]
[BlackClock "0:00:03"]

1. e4 {[%clk 0:03:00]}  Nf6 {[%clk 0:02:58]} 2. e5 {[%clk 0:03:00]}  Nd5 {[%clk 0:02:58]} 3. d4 {[%clk 0:03:01]}  d6 {[%clk 0:02:58]} 4. Nf3 {[%clk 0:03:01]}  Bg4 {[%clk 0:02:58]} 5. Be2 {[%clk 0:03:01]}  e6 {[%clk 0:02:59]} 6. O-O {[%clk 0:03:01]}  Be7 {[%clk 0:02:59]} 7. h3 {[%clk 0:03:01]}  Bh5 {[%clk 0:02:58]} 8. c4 {[%clk 0:03:00]}  Nb6 {[%clk 0:02:58]} 9. Nc3 {[%clk 0:03:01]}  O-O {[%clk 0:02:58]} 10. Be3 {[%clk 0:02:58]}  Nc6 {[%clk 0:02:49]} 11. exd6 {[%clk 0:02:57]}  cxd6 {[%clk 0:02:49]} 12. d5 {[%clk 0:02:56]}  exd5 {[%clk 0:02:48]} 13. cxd5 {[%clk 0:02:54]}  Bxf3 {[%clk 0:02:47]} 14. Bxf3 {[%clk 0:02:53]}  Ne5 {[%clk 0:02:48]} 15. Be2 {[%clk 0:02:32]}  Rc8 {[%clk 0:02:46]} 16. Bd4 {[%clk 0:02:22]}  a6 {[%clk 0:02:41]} 17. Re1 {[%clk 0:02:21]}  Nbd7 {[%clk 0:02:38]} 18. f4 {[%clk 0:02:14]}  Ng6 {[%clk 0:02:36]} 19. Qd2 {[%clk 0:02:10]}  Bf6 {[%clk 0:02:34]} 20. Bf3 {[%clk 0:02:02]}  Nc5 {[%clk 0:02:20]} 21. Re2 {[%clk 0:01:58]}  b5 {[%clk 0:02:20]} 22. Rae1 {[%clk 0:01:51]}  b4 {[%clk 0:02:13]} 23. Ne4 {[%clk 0:01:50]}  Nxe4 {[%clk 0:02:11]} 24. Rxe4 {[%clk 0:01:40]}  a5 {[%clk 0:02:09]} 25. g3 {[%clk 0:01:35]}  Bxd4+ {[%clk 0:02:04]} 26. Qxd4 {[%clk 0:01:35]}  Rc2 {[%clk 0:02:03]} 27. h4 {[%clk 0:01:26]}  Nxh4 {[%clk 0:01:35]} 28. gxh4 {[%clk 0:01:14]}  Qxh4 {[%clk 0:01:35]} 29. R1e2 {[%clk 0:00:42]}  Rc1+ {[%clk 0:01:19]} 30. Kg2 {[%clk 0:00:43]}  Qh1+ {[%clk 0:01:08]} 31. Kg3 {[%clk 0:00:43]}  Rg1+ {[%clk 0:01:00]} 32. Rg2 {[%clk 0:00:41]}  Rxg2+ {[%clk 0:00:56]} 33. Bxg2 {[%clk 0:00:41]}  Qc1 {[%clk 0:00:55]} 34. Re7 {[%clk 0:00:38]}  g6 {[%clk 0:00:49]} 35. b3 {[%clk 0:00:30]}  Rc8 {[%clk 0:00:48]} 36. Bf3 {[%clk 0:00:28]}  h5 {[%clk 0:00:43]} 37. Qf6 {[%clk 0:00:26]}  Qg1+ {[%clk 0:00:41]} 38. Bg2 {[%clk 0:00:23]}  Rc3+ {[%clk 0:00:37]} 39. Kh4 {[%clk 0:00:20]}  Qf2+ {[%clk 0:00:24]} 40. Kg5 {[%clk 0:00:19]}  Qxg2+ {[%clk 0:00:10]} 41. Kh6 {[%clk 0:00:20]}  Qxd5 {[%clk 0:00:03]} 42. Re8# {[%clk 0:00:18]} 1-0


[Site "https://www.chess.com"]

[Event "Titled Tuesday Blitz February 28 Early 2023"]
[White "Cadena M, Gustavo Adolfo"]
[Black "Idnani, Roshan"]
[WhiteFideId "4404815"]
[BlackFideId "2072939"]
[WhiteElo "2259"]
[BlackElo "2295"]
[Result "0-1"]
[Round "01"]
[TimeControl "180+2"]
[Date "2023.02.28"]
[WhiteClock "0:00:05"]
[BlackClock "0:01:06"]

1. d4 {[%clk 0:02:59]}  Nf6 {[%clk 0:02:59]} 2. c4 {[%clk 0:02:58]}  g6 {[%clk 0:02:59]} 3. Nc3 {[%clk 0:02:58]}  Bg7 {[%clk 0:03:00]} 4. e4 {[%clk 0:02:57]}  O-O {[%clk 0:03:01]} 5. f4 {[%clk 0:02:58]}  d6 {[%clk 0:02:59]} 6. Nf3 {[%clk 0:02:58]}  Nbd7 {[%clk 0:02:54]} 7. Bd3 {[%clk 0:02:56]}  e5 {[%clk 0:02:53]} 8. fxe5 {[%clk 0:02:57]}  dxe5 {[%clk 0:02:53]} 9. d5 {[%clk 0:02:58]}  Re8 {[%clk 0:02:48]} 10. O-O {[%clk 0:02:57]}  Nc5 {[%clk 0:02:48]} 11. Be3 {[%clk 0:02:51]}  Nxd3 {[%clk 0:02:48]} 12. Qxd3 {[%clk 0:02:52]}  Ng4 {[%clk 0:02:48]} 13. Bg5 {[%clk 0:02:42]}  f6 {[%clk 0:02:46]} 14. Bh4 {[%clk 0:02:40]}  c6 {[%clk 0:02:46]} 15. Bf2 {[%clk 0:02:06]}  Nxf2 {[%clk 0:02:44]} 16. Rxf2 {[%clk 0:02:06]}  Bd7 {[%clk 0:02:36]} 17. Kh1 {[%clk 0:02:03]}  Qb6 {[%clk 0:02:34]} 18. Rd2 {[%clk 0:02:01]}  Rad8 {[%clk 0:02:34]} 19. Rad1 {[%clk 0:02:00]}  c5 {[%clk 0:02:33]} 20. Qe3 {[%clk 0:01:52]}  Qd6 {[%clk 0:02:30]} 21. Rc2 {[%clk 0:01:42]}  b6 {[%clk 0:02:27]} 22. a4 {[%clk 0:01:35]}  f5 {[%clk 0:02:26]} 23. Nb5 {[%clk 0:01:34]}  Bxb5 {[%clk 0:02:25]} 24. axb5 {[%clk 0:01:34]}  f4 {[%clk 0:02:25]} 25. Qe2 {[%clk 0:01:31]}  h6 {[%clk 0:02:24]} 26. Ra1 {[%clk 0:01:29]}  Re7 {[%clk 0:02:24]} 27. Nh4 {[%clk 0:01:28]}  Kh7 {[%clk 0:02:20]} 28. Qg4 {[%clk 0:01:28]}  h5 {[%clk 0:02:15]} 29. Qh3 {[%clk 0:01:20]}  Bf6 {[%clk 0:02:11]} 30. Rf2 {[%clk 0:01:09]}  Red7 {[%clk 0:02:11]} 31. g3 {[%clk 0:01:07]}  Qe7 {[%clk 0:02:10]} 32. Ng2 {[%clk 0:00:46]}  fxg3 {[%clk 0:02:06]} 33. hxg3 {[%clk 0:00:46]}  Rf8 {[%clk 0:01:59]} 34. Raf1 {[%clk 0:00:44]}  Rdd8 {[%clk 0:01:58]} 35. g4 {[%clk 0:00:38]}  h4 {[%clk 0:01:50]} 36. g5 {[%clk 0:00:23]}  Bxg5 {[%clk 0:01:47]} 37. Qg4 {[%clk 0:00:23]}  Kh6 {[%clk 0:01:41]} 38. Kh2 {[%clk 0:00:14]}  Rxf2 {[%clk 0:01:39]} 39. Rxf2 {[%clk 0:00:15]}  Rf8 {[%clk 0:01:39]} 40. Rf3 {[%clk 0:00:13]}  Rxf3 {[%clk 0:01:38]} 41. Qxf3 {[%clk 0:00:14]}  Qf6 {[%clk 0:01:38]} 42. Qg4 {[%clk 0:00:13]}  Qf2 {[%clk 0:01:33]} 43. Kh1 {[%clk 0:00:06]}  Qxb2 {[%clk 0:01:25]} 44. Qc8 {[%clk 0:00:04]}  Bf6 {[%clk 0:01:25]} 45. Qf8+ {[%clk 0:00:03]}  Kg5 {[%clk 0:01:25]} 46. Qc8 {[%clk 0:00:01]}  Qb1+ {[%clk 0:01:15]} 47. Kh2 {[%clk 0:00:02]}  Qxe4 {[%clk 0:01:16]} 48. d6 {[%clk 0:00:02]}  Qxc4 {[%clk 0:01:08]} 49. d7 {[%clk 0:00:02]}  Qd5 {[%clk 0:01:09]} 50. Qc6 {[%clk 0:00:01]}  Qxc6 {[%clk 0:01:08]} 51. bxc6 {[%clk 0:00:02]}  Bd8 {[%clk 0:01:08]} 52. Ne3 {[%clk 0:00:03]}  Kf6 {[%clk 0:01:06]} 53. Nd5+ {[%clk 0:00:02]}  Ke6 {[%clk 0:01:06]} 54. c7 {[%clk 0:00:02]}  Bxc7 {[%clk 0:01:06]} 55. Nxc7+ {[%clk 0:00:03]}  Kxd7 {[%clk 0:01:07]} 56. Nb5 {[%clk 0:00:04]}  a6 {[%clk 0:01:06]} 57. Kg2 {[%clk 0:00:05]}  axb5 {[%clk 0:01:06]} 0-1


[Site "https://www.chess.com"]